bitfinex/quotes_ETHUSD_20250623
["timestamp","ask_amount","ask_price","bid_price","bid_amount"]
[1750714003782,11.00255211,2357.7,2357.5,0.2226823]
[1750714006176,0.7545,2357.6,2357.5,0.2226823]
[1750714006379,13.10016427,2357.6,2357.5,0.2226823]
[1750714006546,13.49101556,2357.6,2357.5,0.2226823]
[1750714007277,13.49045006,2357.6,2357.5,0.2226823]
[1750714007683,13.49045379,2357.6,2357.5,0.2226823]
[1750714007881,22.63437774,2357.6,2357.5,0.2226823]
[1750714009062,22.24416427,2357.6,2357.5,0.2226823]
[1750714009270,22.63438812,2357.6,2357.5,0.2226823]
[1750714009596,22.63437861,2357.6,2357.5,0.2226823]
[1750714009950,13.49037861,2357.6,2357.5,0.2226823]
[1750714010214,19.146,2357.6,2357.5,0.2226823]
[1750714012477,17.195,2357.6,2357.5,0.2226823]
[1750714014277,17.58591325,2357.6,2357.5,0.2226823]
[1750714014478,18.58685859,2357.6,2357.5,0.2226823]
[1750714014727,27.74825693,2357.6,2357.5,0.2226823]
[1750714015012,10.7515,2356.9,2356.0,0.8073]
[1750714015200,9.53781159,2356.8,2356.0,0.8073]
[1750714015378,10.14788031,2356.8,2356.0,0.8073]
[1750714015582,10.1479439,2356.8,2356.0,0.8073]
[1750714015906,1.27640424,2356.7,2356.0,0.8073]
[1750714016215,7.195,2356.6,2356.0,0.8073]
[1750714017994,10.39127643,2356.5,2355.5,0.8051]
[1750714018189,1.22377643,2356.4,2355.5,0.8051]
[1750714018383,10.39127643,2356.3,2355.5,0.8051]
[1750714018608,1.53049846,2356.2,2355.5,0.8051]
[1750714018813,0.39127643,2356.1,2355.5,0.8051]
[1750714019189,1.93082203,2356.2,2355.5,0.8051]
[1750714020426,7.195,2356.1,2355.5,0.8051]
[1750714020601,17.195,2356.1,2355.5,0.8051]
[1750714021897,17.87503297,2356.1,2355.5,0.8051]
[1750714023914,7.195,2356.1,2355.5,0.8051]
[1750714024114,10.28822203,2356.2,2355.5,0.8051]
[1750714024423,0.39170493,2356.1,2355.5,0.8051]
[1750714024588,1.3946294,2356.1,2355.5,0.8051]
[1750714024794,1.00292447,2356.1,2355.5,0.8051]
[1750714024994,3.13203912,2356.1,2355.5,0.8051]
[1750714025392,3.13203912,2356.1,2355.2,0.8028]
[1750714025729,10.39164962,2356.0,2355.2,0.8028]
[1750714025932,0.768,2355.8,2355.2,0.8028]
[1750714026106,0.39164962,2355.7,2355.2,0.8028]
[1750714027130,0.768,2355.8,2355.2,0.8028]
[1750714027314,0.99690571,2355.7,2355.2,0.8028]
[1750714027513,0.39210153,2355.6,2355.1,0.2226823]
[1750714028429,0.39170077,2355.5,2355.1,0.2226823]
[1750714028629,0.60480418,2355.7,2355.1,0.2226823]
[1750714028830,0.39169906,2355.6,2355.1,0.2226823]
[1750714029034,0.39169906,2355.5,2355.1,0.2226823]
[1750714029235,0.3921504,2355.4,2355.1,0.2226823]
[1750714029442,0.39202521,2355.3,2355.1,0.2226823]
[1750714029601,0.37165032,2355.6,2355.1,0.2226823]
[1750714029602,0.39202521,2355.2,2355.1,0.2226823]
[1750714030121,0.39208734,2355.2,2355.1,0.2226823]
[1750714030839,0.768,2355.3,2355.1,0.2226823]
[1750714031041,0.39284847,2355.2,2355.1,0.2226823]
[1750714031544,7.59084847,2355.2,2355.1,0.2226823]
[1750714031731,17.59084847,2355.2,2355.1,0.2226823]
[1750714031914,18.59377294,2355.2,2355.1,0.2226823]
[1750714032313,18.59377294,2355.2,2353.7,4.24859791]
[1750714032314,0.5,2353.9,2351.1,2.077206]
[1750714032536,0.5,2353.9,2351.1,24.44052187]
[1750714032537,14.44052187,2353.5,2351.1,24.44052187]
[1750714032876,14.44052187,2353.5,2351.6,0.8002]
[1750714032877,0.55,2353.3,2351.6,0.8002]
[1750714033001,1.39517933,2353.2,2351.8,0.8002]
[1750714033195,0.39225486,2353.1,2351.8,0.8002]
[1750714033407,0.39225486,2353.1,2352.0,0.8002]
[1750714033657,0.45781924,2353.1,2352.0,0.8002]
[1750714033828,0.39221726,2353.0,2352.0,0.8002]
[1750714034014,0.39221726,2352.9,2352.0,0.8002]
[1750714034209,0.39221726,2352.8,2352.0,0.8002]
[1750714034426,0.39221726,2352.7,2352.0,0.8002]
[1750714034609,10.0,2352.8,2352.0,0.8002]
[1750714034797,2.00349245,2352.7,2351.7,3.0612]
[1750714035003,10.0,2352.6,2351.1,0.8002]
[1750714035201,10.0,2352.3,2351.1,0.8002]
[1750714035401,10.043,2352.2,2351.1,0.8002]
[1750714035626,0.8264,2352.0,2351.0,0.66666667]
[1750714035836,1.5270112,2351.9,2351.0,0.66666667]
[1750714036040,10.0,2351.8,2351.0,0.66666667]
[1750714036662,17.79,2351.8,2351.0,0.66666667]
[1750714037207,10.0,2351.6,2351.0,0.66666667]
[1750714037441,10.0,2351.4,2351.0,0.66666667]
[1750714037640,12.16032822,2351.3,2351.0,0.66666667]
[1750714038152,10.0,2351.1,2351.0,0.66666667]
[1750714038509,11.4617402,2351.2,2351.0,0.66666667]
[1750714038724,1.36812753,2351.1,2351.0,0.66666667]
[1750714040249,1.36812753,2351.1,2351.0,1.21666667]
[1750714040674,1.36812753,2351.1,2351.0,0.66666667]
[1750714041964,1.36812753,2351.1,2351.0,2.04116667]
[1750714042272,10.4309622,2352.0,2351.0,1.49116667]
[1750714042477,1.89785622,2351.9,2351.0,1.49116667]
[1750714043651,10.0,2351.8,2351.0,0.66666667]
[1750714044196,8.5496,2351.7,2351.0,0.66666667]
[1750714044572,0.7586,2351.7,2351.0,0.66666667]
[1750714044875,8.5446,2351.7,2351.0,0.66666667]
[1750714045061,2.07459643,2351.6,2351.0,0.66666667]
[1750714045261,0.7586,2351.5,2350.4,0.2226823]
[1750714045464,10.0,2351.1,2350.4,0.2226823]
[1750714045776,10.0,2350.9,2350.4,0.2226823]
[1750714045947,1.17709245,2350.8,2350.4,0.2226823]
[1750714046148,0.7689,2350.7,2350.4,0.2226823]
[1750714046976,10.7689,2350.7,2350.4,0.2226823]
[1750714047192,10.7689,2350.7,2349.0,4.25713023]
[1750714047193,0.2504,2350.5,2348.2,0.7866]
[1750714047338,10.2504,2349.7,2348.2,0.7866]
[1750714047543,0.41702144,2349.7,2348.2,4.25856064]
[1750714047746,7.804,2349.9,2348.8,0.7866]
[1750714047949,0.2504,2350.0,2348.9,4.25720731]
[1750714048262,0.42714434,2350.0,2349.1,4.25685588]
[1750714048479,0.8173,2350.3,2349.3,0.7866]
[1750714048797,10.0,2350.2,2349.3,0.7866]
[1750714048955,17.804,2350.2,2349.3,0.7866]
[1750714049883,10.0,2350.1,2349.3,0.7866]
[1750714050050,10.42054143,2350.1,2349.3,0.7866]
[1750714050251,12.49513786,2350.1,2349.3,0.7866]
[1750714050778,12.49513786,2350.1,2349.0,7.07211668]
[1750714050779,0.7862,2350.8,2349.4,0.55]
[1750714050948,0.7862,2350.8,2349.0,0.55]
[1750714050949,10.059,2351.0,2350.2,0.55]
[1750714051150,8.22561728,2351.0,2350.2,0.55]
[1750714051460,7.795,2351.4,2350.6,0.7951]
[1750714051662,0.06556438,2351.3,2350.7,4.25403696]
[1750714051864,0.06556438,2351.3,2350.3,4.80475648]
[1750714052067,1.12002182,2351.3,2350.4,0.55998565]
[1750714052584,1.12002182,2351.3,2350.5,4.25433967]
[1750714052894,0.06556438,2351.3,2350.5,4.25433967]
[1750714053104,0.06556438,2351.3,2350.6,0.7951]
[1750714053301,0.06556438,2351.3,2350.8,4.25374449]
[1750714053595,0.06556438,2351.3,2350.9,4.25368396]
[1750714053795,0.06556438,2351.3,2350.9,0.55]
[1750714053950,0.06556438,2351.3,2350.6,3.0601]
[1750714053951,18.42491068,2351.9,2350.6,0.7951]
[1750714054151,0.7738,2351.7,2350.6,0.7951]
[1750714055072,0.7738,2351.7,2350.7,4.80396299]
[1750714055073,8.5578,2351.7,2350.7,4.80396299]
[1750714055246,8.5578,2351.7,2350.6,0.7951]
[1750714057053,0.7738,2351.7,2350.8,4.25378073]
[1750714057251,2.265,2351.9,2350.7,4.25403817]
[1750714057252,8.652,2352.1,2350.7,4.80391909]
[1750714057488,10.0,2351.9,2350.9,4.25359638]
[1750714057694,10.90806779,2352.0,2350.9,4.25359456]
[1750714057869,10.95106779,2352.0,2350.9,4.80359456]
[1750714058190,20.95106779,2352.0,2350.9,0.55]
[1750714059288,0.99672353,2351.9,2350.9,0.55]
[1750714059491,4.05670266,2351.9,2351.0,0.53637434]
[1750714059788,4.05670266,2351.9,2350.9,4.80368229]
[1750714059988,4.05670266,2351.9,2350.9,0.55]
[1750714060196,4.05709243,2351.9,2350.9,0.55]
[1750714060787,0.9971133,2351.8,2350.9,0.55]
[1750714061290,3.05997913,2351.9,2350.9,0.55]
[1750714061291,0.9971133,2351.7,2350.9,0.55]
[1750714061497,0.9971133,2351.6,2350.9,1.08638936]
[1750714061804,0.9971133,2351.8,2351.4,4.80278557]
[1750714061959,0.9971133,2351.7,2351.5,4.25259383]
[1750714062164,0.9971133,2351.6,2351.5,4.25260472]
[1750714062560,0.9971133,2351.6,2351.5,4.80260472]
[1750714062760,1.34035136,2352.6,2351.8,4.25190031]
[1750714062761,1.00616184,2352.4,2351.8,4.25190031]
[1750714062961,3.62635136,2352.6,2351.5,6.55903584]
[1750714062962,1.39946355,2352.3,2352.0,0.7959]
[1750714063163,1.00616184,2352.2,2352.0,0.7959]
[1750714063361,1.00616184,2352.1,2352.0,0.7959]
[1750714063566,1.00616184,2352.1,2352.0,1.19130108]
[1750714063777,1.39946721,2352.1,2352.0,0.39540108]
[1750714064167,1.39941964,2352.1,2352.0,0.39540108]
[1750714064704,1.39950406,2352.1,2352.0,0.39558779]
[1750714065292,1.39950406,2352.1,2352.0,0.39558651]
[1750714066170,1.39949779,2352.1,2352.0,0.39558651]
[1750714066363,1.39943742,2352.1,2352.0,0.39559709]
[1750714066699,1.39943742,2352.1,2352.0,0.39560272]
[1750714066884,1.76788116,2352.1,2352.0,0.39560272]
[1750714067084,10.0,2352.0,2350.8,0.8201]
[1750714067286,1.39926689,2351.9,2350.9,0.39561266]
[1750714067493,17.734,2352.0,2351.0,0.39561453]
[1750714067494,1.39926062,2351.8,2351.0,0.39561453]
[1750714067687,3.68427253,2351.7,2350.8,10.8201]
[1750714067891,1.39927253,2351.6,2350.8,12.32751203]
[1750714068213,1.39927253,2351.5,2350.8,12.32751203]
[1750714068409,1.39927253,2351.4,2350.8,12.32751203]
[1750714068711,1.39919997,2351.3,2350.8,12.32751203]
[1750714068872,1.00616184,2351.2,2350.8,12.32751203]
[1750714069066,1.00616184,2351.1,2350.8,11.50741203]
[1750714069265,1.00616184,2351.0,2350.6,0.8201]
[1750714069491,1.39910203,2350.9,2350.3,0.8201]
[1750714069690,1.39910203,2350.8,2350.3,10.8201]
[1750714069882,1.39920353,2350.7,2350.3,0.8201]
[1750714070079,1.00616184,2350.6,2350.3,0.8201]
[1750714070297,1.00616184,2350.5,2350.3,0.8201]
[1750714070516,1.00616184,2350.4,2350.3,0.8201]
[1750714071191,1.00616184,2350.4,2349.9,14.8054195]
[1750714071387,0.8083,2350.7,2350.0,1.98905761]
[1750714071608,1.39837854,2350.6,2350.0,1.98905761]
[1750714071807,1.00536874,2350.5,2350.0,1.98905761]
[1750714072085,1.00536874,2350.4,2350.0,1.98905761]
[1750714072276,0.8083,2350.7,2349.8,5.08517277]
[1750714072481,1.39821624,2350.6,2349.8,5.08517277]
[1750714072683,1.39816814,2350.5,2349.9,0.55]
[1750714072902,1.00530731,2350.4,2349.8,5.08517277]
[1750714073102,0.8083,2350.7,2349.8,10.8296]
[1750714073103,1.00530731,2350.3,2349.8,10.8296]
[1750714073302,1.00530731,2350.2,2349.8,3.10843827]
[1750714073502,0.8083,2350.7,2349.8,7.36403602]
[1750714073716,1.39769551,2350.6,2349.8,7.36403602]
[1750714073923,1.39769551,2350.5,2349.8,7.36403602]
[1750714074083,0.8083,2350.7,2349.8,7.36403602]
[1750714074084,1.39769551,2350.4,2349.8,7.36403602]
[1750714074417,1.00488655,2350.3,2349.5,10.7752]
[1750714074719,1.00488655,2350.2,2349.5,15.03132585]
[1750714075017,1.00488655,2350.1,2349.5,15.03132585]
[1750714075215,2.286,2350.5,2349.5,15.03132585]
[1750714075216,1.00488655,2350.0,2349.5,15.03124758]
[1750714075418,2.286,2350.5,2349.5,7.73052309]
[1750714075596,1.00678589,2350.4,2349.5,3.47447551]
[1750714075794,2.286,2350.5,2349.5,7.73062861]
[1750714075795,1.40034988,2350.3,2349.5,7.73062861]
[1750714076008,1.40034626,2350.2,2349.5,3.47447551]
[1750714076185,1.40030511,2350.1,2349.5,0.7752]
[1750714076521,1.40030511,2350.1,2349.1,2.286]
[1750714076522,2.21567018,2350.0,2348.3,0.51568116]
[1750714076683,1.40022978,2349.9,2349.1,4.25684155]
[1750714076878,0.8153,2350.0,2349.2,10.0]
[1750714076879,1.00678589,2349.8,2349.2,10.0]
[1750714077115,1.00678589,2349.7,2349.2,2.18288416]
[1750714077320,1.00678589,2349.6,2349.4,10.0]
[1750714077520,10.0,2350.4,2349.4,14.25632998]
[1750714077821,2.15168751,2350.3,2349.7,0.55]
[1750714078037,1.39958751,2350.2,2349.6,0.55]
[1750714078244,1.39958751,2350.1,2349.5,4.25622116]
[1750714078419,1.39958751,2350.0,2349.5,6.93129178]
[1750714078736,0.42542685,2350.9,2349.7,0.55]
[1750714078737,1.00626146,2349.9,2349.7,0.55]
[1750714078898,0.7877,2350.7,2349.6,0.7652]
[1750714078899,1.00626146,2350.6,2350.0,4.25531633]
[1750714079098,0.7877,2350.7,2350.0,4.25531633]
[1750714079099,1.40009089,2350.5,2350.0,4.25531633]
[1750714079313,1.40009089,2350.4,2350.0,4.25531633]
[1750714079512,0.7877,2350.7,2350.0,4.25531633]
[1750714079513,1.00626146,2350.3,2350.0,4.25531633]
[1750714079734,1.00626146,2350.2,2350.0,4.25531633]
[1750714080045,2.7163393,2351.1,2350.1,4.80504015]
[1750714080232,1.40162476,2351.0,2350.3,0.55]
[1750714080534,1.40162476,2350.9,2350.5,0.55]
[1750714080702,1.40162476,2350.8,2350.5,0.55]
[1750714080897,1.0076595,2350.7,2350.5,4.80439894]
[1750714081112,2.70811761,2351.6,2350.5,4.80439894]
[1750714081113,4.22631082,2352.0,2350.7,0.55]
[1750714081311,1.40482286,2351.6,2351.1,0.55]
[1750714081512,1.0097358,2351.5,2351.4,1.3152]
[1750714081752,1.40470455,2351.5,2351.4,5.56798557]
[1750714081897,0.7877,2352.4,2351.4,1.3152]
[1750714082096,1.40431379,2352.3,2351.5,0.55]
[1750714082309,1.40431379,2352.2,2351.4,0.7652]
[1750714082530,10.7939,2352.0,2351.1,0.7738]
[1750714082730,1.00934174,2351.9,2351.1,0.7738]
[1750714082937,1.40423396,2351.8,2351.1,0.7738]
[1750714083114,1.40423396,2351.7,2351.1,0.7738]
[1750714083313,1.40421674,2351.6,2351.1,0.7738]
[1750714083500,1.40421674,2351.5,2351.1,0.7738]
[1750714083703,0.394875,2351.4,2351.1,0.7738]
[1750714083901,10.7939,2352.0,2351.2,0.55]
[1750714083902,1.00899809,2351.9,2351.2,0.55]
[1750714084208,1.40387349,2351.8,2351.2,0.55]
[1750714084552,1.40378438,2351.7,2351.2,0.55]
[1750714084702,1.00899809,2351.6,2351.2,0.55]
[1750714084902,1.4037841,2351.5,2351.2,0.55]
[1750714085152,0.7939,2352.8,2351.6,0.55]
[1750714085308,0.7939,2352.8,2351.5,0.7738]
[1750714085309,0.39489741,2352.7,2351.5,0.7738]
[1750714085528,0.39489741,2352.6,2351.5,5.02635606]
[1750714085869,0.39484599,2352.5,2351.7,4.25221949]
[1750714086048,10.0,2352.7,2351.5,0.7738]
[1750714086049,0.39484599,2352.4,2351.5,0.7738]
[1750714086246,0.39484599,2352.3,2351.5,1.33146476]
[1750714086446,0.39484599,2352.2,2351.5,1.33146476]
[1750714086656,10.0,2352.7,2351.5,1.33146476]
[1750714086816,0.7877,2352.5,2351.2,0.7889]
[1750714087016,10.0,2352.2,2350.9,0.7889]
[1750714087262,10.0,2351.8,2350.6,0.7889]
[1750714087434,10.0,2351.8,2350.3,5.04366409]
[1750714087435,0.7877,2351.6,2350.3,5.04366409]
[1750714087636,12.68012805,2351.5,2350.4,0.55]
[1750714087965,10.7877,2350.4,2349.2,0.7889]
[1750714088167,10.0,2350.2,2348.9,4.25719455]
[1750714088370,0.39384314,2350.1,2348.9,4.25719455]
[1750714088925,10.0,2350.2,2348.9,4.25719455]
[1750714089119,2.0005,2350.1,2349.0,0.93035665]
[1750714089326,2.0005,2350.1,2349.1,4.25688932]
[1750714089523,2.0005,2350.1,2348.0,0.2226823]
[1750714089524,0.7877,2349.2,2348.0,0.2226823]
[1750714089722,1.27316642,2349.2,2348.0,0.2226823]
[1750714089976,0.7877,2349.2,2348.3,4.25837846]
[1750714090277,0.7877,2349.6,2348.5,4.25800454]
[1750714090453,11.20005,2350.0,2348.6,2.87769045]
[1750714090454,10.0,2350.0,2348.6,2.87769045]
[1750714090665,0.06556438,2349.5,2348.7,0.55]
[1750714090965,0.06556438,2349.5,2348.9,0.55]
[1750714091574,0.06556438,2349.5,2348.8,2.373]
[1750714091740,0.06556438,2349.5,2348.9,0.55]
[1750714091940,0.06556438,2349.5,2349.0,0.2923]
[1750714092456,10.0,2350.0,2349.0,0.2923]
[1750714094034,10.0,2350.0,2349.1,0.55]
[1750714094235,10.0,2350.0,2349.0,4.54941706]
[1750714094458,10.0,2350.0,2349.0,0.2923]
[1750714094764,2.7882,2350.1,2349.1,4.25678894]
[1750714095065,2.7882,2350.1,2349.2,0.45490889]
[1750714095267,0.7877,2350.1,2349.2,0.45490889]
[1750714097764,0.7877,2350.1,2349.2,1.26510889]
[1750714097971,0.7877,2350.1,2349.2,0.45490889]
[1750714100167,0.7877,2350.1,2349.2,4.71165894]
[1750714100541,0.7877,2350.1,2349.2,0.45490889]
[1750714100871,2.88887,2350.1,2349.2,0.45490889]
[1750714102176,0.8175,2350.4,2349.2,4.71151504]
[1750714102386,1.17517282,2351.0,2350.0,0.55]
[1750714102546,1.17517282,2351.0,2350.1,4.25505659]
[1750714102757,1.17517282,2351.0,2350.0,2.373]
[1750714102967,0.8175,2350.9,2350.0,6.62826766]
[1750714103168,0.8175,2350.9,2350.0,3.461382]
[1750714103371,0.8175,2350.9,2350.0,7.71669701]
[1750714103540,0.8175,2350.9,2349.8,2.373]
[1750714103742,0.8175,2350.9,2349.8,6.62854173]
[1750714103942,0.8175,2350.9,2350.2,4.25492538]
[1750714104166,11.52672568,2351.7,2350.2,0.41993184]
[1750714104381,0.8175,2351.6,2350.6,4.25421177]
[1750714104544,1.23442257,2351.5,2350.4,2.373]
[1750714104740,1.23442257,2351.5,2350.7,4.25394538]
[1750714104941,1.23442257,2351.5,2350.8,4.25377051]
[1750714105142,1.23442257,2351.5,2350.8,4.25372453]
[1750714105835,1.23442257,2351.5,2350.9,4.25353374]
[1750714106048,1.23442257,2351.5,2350.9,4.25359195]
[1750714106253,0.8175,2351.6,2350.8,4.25385538]
[1750714106878,0.8175,2351.6,2350.7,4.25394761]
[1750714108177,0.8175,2351.6,2350.5,0.792]
[1750714108387,0.8175,2351.6,2350.5,5.04629948]
[1750714109180,0.8175,2351.6,2350.6,4.254205]
[1750714110452,0.8175,2351.6,2350.5,5.04639032]
[1750714110453,0.8175,2351.6,2350.5,4.2543004]
[1750714111056,0.31262425,2351.5,2350.5,4.2543004]
[1750714111251,0.31262425,2351.5,2350.4,6.62757463]
[1750714111670,0.31262425,2351.5,2350.0,4.25531506]
[1750714111671,10.65623418,2351.3,2349.0,0.2923]
[1750714111845,10.8293,2350.4,2349.0,4.25712142]
[1750714112045,10.0,2350.2,2348.9,4.25720746]
[1750714112388,2.0226,2350.1,2349.0,0.42572075]
[1750714112572,0.8293,2351.0,2349.2,0.55]
[1750714112783,0.8293,2351.0,2349.4,0.55]
[1750714112946,0.8293,2351.0,2349.9,4.25539593]
[1750714113480,0.8293,2351.0,2349.8,4.25565482]
[1750714113481,0.8293,2351.0,2350.0,4.25529007]
[1750714113779,0.8293,2351.0,2349.8,4.25560928]
[1750714113966,12.01296606,2351.0,2349.9,4.68094635]
[1750714114164,2.01296606,2351.0,2349.9,4.68094635]
[1750714114378,2.01296606,2351.0,2350.0,4.25531101]
[1750714114566,2.01296606,2351.0,2350.1,4.25511486]
[1750714114755,0.8293,2351.0,2350.1,0.89359906]
[1750714114960,10.8293,2351.0,2350.1,0.89359906]
[1750714115268,10.8293,2351.0,2350.2,4.25485665]
[1750714115471,10.8293,2351.0,2350.3,4.25475395]
[1750714115667,10.8293,2351.0,2350.1,5.14863452]
[1750714115871,10.8293,2351.0,2350.2,4.76974173]
[1750714116067,0.8293,2351.0,2350.2,4.76974173]
[1750714116274,0.8293,2351.0,2350.3,4.254743]
[1750714116682,0.8293,2351.0,2350.5,4.25433474]
[1750714117183,0.8293,2351.0,2350.2,0.51486345]
[1750714117390,0.8293,2351.0,2350.2,4.25494247]
[1750714117603,0.8293,2351.0,2350.2,4.25493819]
[1750714118101,0.8293,2351.0,2350.1,4.68712073]
[1750714118462,0.8293,2351.0,2350.2,4.25493275]
[1750714119553,0.8293,2351.0,2350.1,4.25504074]
[1750714119790,0.8293,2351.0,2350.2,0.85102855]
[1750714120166,0.8293,2351.0,2349.8,0.7641]
[1750714120487,7.86,2350.9,2349.8,5.01967727]
[1750714120689,0.7643,2350.6,2349.1,5.05820452]
[1750714120854,10.0,2350.7,2349.1,0.8013]
[1750714120855,0.7643,2350.5,2349.1,0.8013]
[1750714121050,0.7643,2350.5,2349.2,4.25676333]
[1750714121276,0.7643,2350.5,2349.3,0.50580633]
[1750714121477,0.7643,2350.5,2349.3,4.76236571]
[1750714121678,0.7643,2350.5,2349.4,4.25627642]
[1750714121883,0.7643,2350.5,2349.5,4.25617827]
[1750714122089,12.339,2350.4,2349.4,4.25632052]
[1750714122291,10.7668,2350.2,2348.8,0.7692]
[1750714122585,11.77818958,2350.1,2348.8,0.7692]
[1750714122889,1.01127653,2350.0,2348.9,4.25730048]
[1750714123111,1.01127653,2350.0,2349.0,4.25707516]
[1750714123269,1.17780765,2349.9,2349.0,4.75970268]
[1750714123669,1.17780765,2349.9,2349.0,0.50262752]
[1750714123884,1.17780765,2349.9,2349.0,5.19608067]
[1750714124800,1.17780765,2349.9,2349.0,0.93897488]
[1750714125500,1.17780765,2349.9,2349.0,5.19610004]
[1750714125703,1.17780765,2349.9,2349.0,0.93897488]
[1750714126002,1.17780765,2349.9,2349.1,0.51961804]
[1750714129708,1.17780765,2349.9,2349.0,0.43429164]
[1750714129913,1.17780765,2349.9,2348.8,5.02661611]
[1750714130651,1.17780765,2349.9,2348.9,4.25730164]
[1750714133032,10.65623418,2349.6,2348.1,0.7715]
[1750714133204,0.7854,2349.4,2347.8,2.34]
[1750714133403,11.06562342,2349.5,2347.8,2.34]
[1750714133404,0.8178,2349.1,2347.8,2.34]
[1750714134209,0.8178,2349.1,2347.9,0.42568421]
[1750714134710,0.7657,2349.0,2347.8,2.34]
[1750714135997,0.5,2348.8,2347.8,1.3896963]
[1750714136695,0.5,2348.8,2347.7,0.25602325]
[1750714136696,10.0,2348.6,2347.7,0.25602325]
[1750714136890,10.7958,2348.4,2347.7,0.25602325]
[1750714137129,0.7958,2348.3,2347.7,0.25602325]
[1750714137324,10.0,2348.2,2347.7,0.25602325]
[1750714138049,0.8039,2348.1,2347.7,0.25602325]
[1750714138193,10.0,2347.9,2347.7,0.25602325]
[1750714138393,22.98452342,2347.8,2347.7,0.25602325]
[1750714140465,22.97452342,2347.8,2347.7,0.25602325]
[1750714140994,10.0,2347.7,2347.4,0.005]
[1750714141201,10.0,2347.5,2347.4,0.005]
[1750714141423,10.0,2347.5,2346.1,4.26735574]
[1750714141424,10.0,2347.5,2346.1,0.005]
[1750714141641,10.0,2347.0,2346.1,0.005]
[1750714141809,10.109,2346.9,2346.1,0.005]
[1750714142022,10.0,2347.0,2346.1,0.005]
[1750714142342,0.5772,2346.9,2346.1,0.005]
[1750714142525,8.3402,2346.9,2346.1,4.26729158]
[1750714142839,0.5772,2346.9,2346.1,4.26729158]
[1750714143042,0.8144,2347.7,2346.1,0.555]
[1750714143344,0.8144,2347.7,2346.7,4.26120253]
[1750714143640,10.8144,2347.7,2346.8,0.50152025]
[1750714143844,8.5794,2347.7,2346.6,4.26134417]
[1750714144037,8.5794,2347.7,2346.4,0.005]
[1750714144038,16.4394,2347.7,2346.4,0.005]
[1750714144241,10.0,2347.6,2346.4,0.005]
[1750714144538,0.8144,2347.5,2346.4,0.005]
[1750714144741,0.8144,2347.5,2346.5,8.45383879]
[1750714144941,1.08144,2347.4,2347.0,5.91768715]
[1750714145239,1.08144,2347.4,2346.4,0.005]
[1750714146017,0.5,2347.2,2346.4,4.26681504]
[1750714146399,0.5,2347.2,2346.5,4.26165388]
[1750714146819,0.5,2347.2,2346.6,4.26148106]
[1750714147002,0.5,2347.2,2346.8,4.26111865]
[1750714147205,0.5,2347.2,2346.9,1.3402]
[1750714147400,0.8281,2347.8,2347.1,4.81044162]
[1750714147701,0.8281,2347.8,2347.1,4.81053509]
[1750714147898,0.8281,2347.8,2347.1,0.55]
[1750714148420,0.8281,2347.8,2347.1,4.8104862]
[1750714148608,0.8281,2347.8,2347.1,5.5704862]
[1750714148803,0.8281,2347.8,2347.2,1.03913578]
[1750714149028,0.8281,2347.8,2347.2,5.29950258]
[1750714149337,12.342,2348.2,2347.2,5.29949063]
[1750714149844,12.342,2348.2,2347.2,1.03913578]
[1750714150026,10.0,2348.2,2347.2,5.29952413]
[1750714150231,2.342,2348.1,2347.3,1.12910138]
[1750714150546,0.7572,2348.3,2347.4,4.80986118]
[1750714150706,0.7572,2348.3,2347.5,4.25984529]
[1750714150909,0.7572,2348.3,2347.6,4.80959212]
[1750714151108,0.7572,2348.3,2347.3,1.12910138]
[1750714151349,0.7654,2348.7,2347.7,4.25932446]
[1750714151651,0.7654,2348.7,2347.5,0.55]
[1750714151652,0.7654,2348.7,2348.0,0.55]
[1750714151952,0.7654,2348.7,2348.0,4.80888364]
[1750714153047,0.7654,2348.7,2348.0,0.55]
[1750714153948,0.7654,2348.7,2348.0,4.80890713]
[1750714154131,0.7654,2348.7,2348.2,0.55]
[1750714156252,0.7654,2348.7,2348.0,0.55]
[1750714158816,0.7654,2348.7,2347.1,0.42101041]
[1750714159042,0.7654,2348.7,2346.8,4.26102293]
[1750714159043,0.8285,2348.5,2346.8,4.26102293]
[1750714159355,10.65623418,2348.2,2346.7,0.8265]
[1750714159573,0.8285,2348.1,2346.9,0.55]
[1750714159722,0.8285,2347.9,2346.8,0.50878933]
[1750714160053,0.8285,2347.9,2346.7,0.8265]
[1750714160430,1.83472549,2347.9,2346.7,0.8265]
[1750714162438,0.7662,2347.8,2346.7,0.8265]
[1750714162766,1.77242549,2347.8,2346.7,0.8265]
[1750714162926,0.7662,2347.8,2346.7,0.8265]
[1750714163258,2.95246804,2347.8,2346.8,1.50879836]
[1750714163475,1.94624255,2347.8,2346.8,1.50879836]
[1750714163640,1.00622549,2347.7,2346.8,1.50879836]
[1750714163964,0.7662,2347.8,2346.9,4.81085323]
[1750714164261,1.77242549,2347.8,2346.9,4.81085323]
[1750714164426,0.7662,2347.8,2347.0,0.63196516]
[1750714164629,1.77242549,2347.8,2347.0,0.63196516]
[1750714164821,0.7662,2347.8,2347.0,0.63196516]
[1750714165025,1.77242549,2347.8,2347.0,0.63196516]
[1750714165437,1.00622549,2348.0,2347.3,0.55]
[1750714165683,0.778,2348.1,2347.4,0.48103954]
[1750714165866,1.78422549,2348.1,2347.4,0.48103954]
[1750714166166,0.778,2348.1,2347.4,0.48103954]
[1750714166370,1.78422549,2348.1,2347.4,4.74098839]
[1750714166573,0.778,2348.1,2347.4,4.74098839]
[1750714166743,1.78422549,2348.1,2347.4,4.74098839]
[1750714166952,0.778,2348.1,2347.5,0.90011992]
[1750714168285,0.778,2348.1,2347.6,4.8095535]
[1750714168572,0.778,2348.1,2347.4,4.26003237]
[1750714168789,0.778,2348.1,2347.3,0.8278]
[1750714169140,0.778,2348.1,2347.4,0.55]
[1750714169348,0.778,2348.1,2347.7,4.25935845]
[1750714169568,0.778,2348.1,2347.7,5.11127939]
[1750714169886,0.778,2348.1,2347.8,4.25921869]
[1750714170241,0.778,2348.1,2347.9,4.25909339]
[1750714170487,0.7843,2348.4,2347.9,4.25902556]
[1750714170646,0.7843,2348.4,2347.8,0.55]
[1750714170847,2.274,2349.0,2348.2,4.25844957]
[1750714171183,1.00622549,2349.1,2348.5,4.25788149]